Cogmind - Beta 10.2 @@@ ROGUE MODE // 2021.05.14 @ 23:53:02 Player: MistressMomoko Result: Self-destructed Performance ------------- Evolutions (1) 500 Regions Visited (2) 400 Robots Destroyed (7) 35 Value Destroyed (170) 170 Prototype IDs (1) 20 Alien Tech Used (0) 0 Bonus (0) 0 TOTAL SCORE: 1125 Bonus ------- None Cogmind --------- Core Integrity 116/400 Matter 391/500 Energy 178/280 System Corruption 0% Temperature Cool (6) Movement Core (250) Ox4 Location -9/Materials Parts ------- > --- POWER (1) -------- Heavy Ion Engine > --- PROPULSION (2) --- (None) > --- UTILITY (4) ------ Heat Sink High-capacity Matter Pod Terrain Scanner > --- WEAPON (2) ------- (None) > --- INVENTORY (4) ---- (None) Peak State ------------ > --- POWER ------------ Light Ion Engine > --- PROPULSION ------- Light Treads Light Treads > --- UTILITY ---------- Heat Sink High-capacity Matter Pod Terrain Scanner > --- WEAPON ----------- Light Assault Rifle Light Assault Rifle > --- INVENTORY -------- Light Ion Engine Medium Laser Medium Laser Medium Laser [Rating: 8] Favorites ----------- Power Light Ion Engine Engine Light Ion Engine Propulsion Light Treads Treads Light Treads Utility Terrain Scanner Device Terrain Scanner Storage High-capacity Matter Pod Weapon Light Assault Rifle Energy Gun Medium Laser Ballistic Gun Light Assault Rifle Build | -11 -10 -9 ------- Run | Scr Mat Mat Slots Evolved 2 | . . 2 Power . | . . . Propulsion . | . . . Utility 2 | . . 2 Weapon . | . . . Parts Attached 13 | 5 2 6 Power 3 | 1 . 2 Engine 3 | 1 . 2 Core . | . . . Reactor . | . . . Propulsion 2 | 2 . . Treads 2 | 2 . . Leg . | . . . Wheel . | . . . Hover . | . . . Flight . | . . . Utility 3 | . 2 1 Device 2 | . 1 1 Storage 1 | . 1 . Processor . | . . . Hackware . | . . . Protection . | . . . Artifact . | . . . Weapon 5 | 2 . 3 Energy Gun 3 | . . 3 Energy Cannon . | . . . Ballistic Gun 2 | 2 . . Ballistic Cannon . | . . . Launcher . | . . . Special Weapon . | . . . Impact Weapon . | . . . Slashing Weapon . | . . . Piercing Weapon . | . . . Special Melee Weapon . | . . . Unidentified Prototypes 1 | . . 1 Parts Lost 9 | . . 9 Power 2 | . . 2 Propulsion 2 | . . 2 Utility . | . . . Weapon 5 | . . 5 Highest Loss Streak 6 | . . 6 Average Slot Usage (%) 85 | . 93 75 Engine 12 | . 14 9 Treads 22 | . 28 14 Device 15 | . 11 20 Storage 10 | . 9 11 Energy Gun 2 | . . 6 Ballistic Gun 22 | . 28 13 Naked Turns . | . . . Heaviest Build 13 | 5 10 13 Greatest Support 40 | 40 40 40 Greatest Overweight (x) 4 | 1 . 4 Average Overweight (x) . | . . 1 Largest Inventory Capacity 4 | 4 4 4 Average Capacity 4 | 4 4 4 Most Carried 4 | 2 4 4 Average Carried 3 | 1 3 2 Final Capacity 4 | 4 4 4 Final Carried 4 | 2 4 . Class Distribution -------------------- 100% | Mutant Dominant Class ---------------- Mutant | -10/Materials Mutant | -9/Materials Resources | -11 -10 -9 ----------- Run | Scr Mat Mat Matter Collected 432 | 223 28 181 Remotely . | . . . Salvage Created 223 | . 28 195 Parts 13 | . 4 9 Haulers Intercepted . | . . . Recyclers Shooed . | . . . Parts Field Recycled . | . . . Retrieved Matter . | . . . Parts Self-Destructed . | . . . Prevented . | . . . Kills | -11 -10 -9 ------- Run | Scr Mat Mat Combat Hostiles Destroyed 6 | . . 6 Guns 6 | . . 6 Classes Destroyed 4 | . 1 3 Watcher 1 | . 1 . Swarmer 3 | . . 3 Grunt 1 | . . 1 Sentry 2 | . . 2 Best Kill Streak 3 | . 1 3 Combat Bots Only 3 | . . 3 Max Kills in Single Turn 1 | . 1 1 Gunslinging . | . . . Exploded . | . . . Melee . | . . . Uniques/NPCs Destroyed . | . . . Combat | -11 -10 -9 -------- Run | Scr Mat Mat Damage Taken 1000 | . 93 907 Core 284 | . . 284 Absorbed by Shields . | . . . Core Remaining (%) 100 | 100 100 . Volleys Fired 37 | . 5 32 Largest 2 | . 2 2 Hottest 100 | . 40 100 Shots Fired 68 | . 10 58 Gun 68 | . 10 58 Cannon . | . . . Launcher . | . . . Special . | . . . Kinetic 56 | . 10 46 Thermal 12 | . . 12 Explosive . | . . . Electromagnetic . | . . . Robot Hit Streak 12 | . 4 12 Robot Miss Streak 2 | . 1 2 Penetration Max . | . . . Secondary Targets 2 | . . 2 Max Gunslinging Chain 1 | . . 1 Shots Hit Robots 43 | . 7 36 Core Hits 14 | . 3 11 Critical Hits 2 | . 1 1 Critical Kills 2 | . 1 1 Critical Parts Destroyed . | . . . Melee Attacks . | . . . Impact . | . . . Slashing . | . . . Piercing . | . . . Sneak Attacks . | . . . Combat Hostiles . | . . . Follow-up Attacks . | . . . Damage Inflicted 352 | . 63 289 Guns 352 | . 63 289 Cannons . | . . . Explosions . | . . . Melee . | . . . Ramming . | . . . Kinetic 239 | . 63 176 Thermal 113 | . . 113 Explosive . | . . . Electromagnetic . | . . . Impact . | . . . Slashing . | . . . Piercing . | . . . Highest Corruption . | . . . Average Corruption . | . . . Corruption Purged . | . . . Overload Shots . | . . . Overflow Damage . | . . . Projectiles . | . . . Explosions . | . . . Melee . | . . . Knockbacks . | . . . Impact . | . . . Kinetic . | . . . Secondary . | . . . Self-Inflicted Damage . | . . . Shots . | . . . Rammed . | . . . Targets Rammed . | . . . Kicked . | . . . Crushed . | . . . Highest Temperature 18 | . 18 13 Average Temperature 8 | . 12 5 Received Heat Transfer 348 | . 54 294 Siege Activations . | . . . Robots Corrupted . | . . . Combat Hostiles . | . . . Parts Fried . | . . . Impact Corruptions . | . . . Robots Melted . | . . . Combat Hostiles . | . . . Parts Melted 3 | . . 3 Heat Transferred 333 | . . 333 Parts Sabotaged . | . . . Parts Stolen . | . . . Parts Stripped . | . . . Power Chain Reactions . | . . . Missiles Intercepted . | . . . Alert | -11 -10 -9 ------- Run | Scr Mat Mat Peak Influence 125 | . 26 125 Initial 10 | . . 10 Average 31 | . 4 78 Maximum Alert Level . | . . . Low Security (%) 100 | 100 100 100 Level 1 . | . . . Level 2 . | . . . Level 3 . | . . . Level 4 . | . . . Level 5 . | . . . High Security . | . . . Max Security . | . . . Squads Dispatched 1 | . . 1 Investigation . | . . . Extermination . | . . . Reinforcement 1 | . . 1 Assault . | . . . Garrison . | . . . Intercept . | . . . Construction Impeded . | . . . Haulers Reinforced . | . . . Stealth | -11 -10 -9 --------- Run | Scr Mat Mat Distress Signals 1 | . . 1 Communications Jammed . | . . . Distress Signals . | . . . Times Spotted 19 | . 4 15 Peak Tracking Total 6 | . 2 6 Tactical Retreats . | . . . Traps | -11 -10 -9 ------- Run | Scr Mat Mat Traps Triggered . | . . . Indirectly . | . . . Trap Hack Attempts . | . . . Triggered . | . . . Disarmed . | . . . Reprogrammed . | . . . Reused . | . . . Traps Extracted . | . . . Installed . | . . . Triggered . | . . . Machines | -11 -10 -9 ---------- Run | Scr Mat Mat Machines Disabled . | . . . Max in Single Turn . | . . . Machines Sabotaged . | . . . Garrisons Compromised . | . . . Overloaded Fab Kills . | . . . Fab Network Shutdowns . | . . . Hacking | -11 -10 -9 --------- Run | Scr Mat Mat Machines Accessed 3 | . 3 . Terminals 2 | . 2 . Fabricators . | . . . Repair Stations . | . . . Recycling Units 1 | . 1 . Scanalyzers . | . . . Garrison Access . | . . . Total Hacks 7 | . 7 . Successful 7 | . 7 . Failed . | . . . Catastrophic . | . . . Database Lockouts . | . . . Manual . | . . . Terminals 5 | . 5 . Fabricators . | . . . Repair Stations . | . . . Recycling Units 2 | . 2 . Scanalyzers . | . . . Garrison Access . | . . . Terminal Hacks 5 | . 5 . Record 2 | . 2 . Robot Analysis 1 | . 1 . Emergency Access Points 1 | . 1 . Zone Layout 1 | . 1 . Fabricator Hacks . | . . . Repair Station Hacks . | . . . Recycling Unit Hacks 2 | . 2 . Report Inventory 1 | . 1 . Retrieve Matter 1 | . 1 . Scanalyzer . | . . . Garrison Access Hacks . | . . . Unauthorized Hacks . | . . . Terminals . | . . . Fabricators . | . . . Repair Stations . | . . . Recycling Units . | . . . Scanalyzers . | . . . Garrison Access . | . . . Data Cores Recovered . | . . . Used . | . . . Hacking Detections 3 | . 3 . Full Trace Events . | . . . Feedback Events . | . . . Feedback Blocked . | . . . Robot Schematics Acquired . | . . . Robots Built . | . . . Matter . | . . . Time . | . . . Total Robot Build Rating . | . . . Part Schematics Acquired . | . . . Parts Built . | . . . Matter . | . . . Time . | . . . Total Part Build Rating . | . . . Parts Repaired . | . . . Time . | . . . Parts Recycled . | . . . Recycled Matter . | . . . Retrieved Matter . | . . . Retrieved Components . | . . . Parts Scanalyzed . | . . . Part Schematics Acquired . | . . . Parts Damaged . | . . . Bothacking | -11 -10 -9 ------------ Run | Scr Mat Mat Used RIF Installer . | . . . Robots Hacked . | . . . Non-combat . | . . . Combat . | . . . Robot Hacks Applied . | . . . Relay Couplers Released . | . . . Robots Rewired . | . . . Allies Hacked . | . . . Hacks Repelled . | . . . Allies | -11 -10 -9 -------- Run | Scr Mat Mat Total Allies . | . . . Largest Group . | . . . Highest-Rated Group . | . . . Highest-Rated Ally . | . . . Total Orders . | . . . Ally Attacks . | . . . Total Damage . | . . . Kills . | . . . Allies Corrupted . | . . . Allies Melted . | . . . Intel | -11 -10 -9 ------- Run | Scr Mat Mat Robot Analysis Total 1 | . 1 . Derelict Logs Recovered . | . . . Drone Launches . | . . . Drone Recoveries . | . . . Exploration | -11 -10 -9 ------------- Run | Scr Mat Mat Turns Passed 670 | 63 356 251 Spaces Moved 337 | 42 212 83 Core 39 | 16 . 23 Treads 298 | 26 212 60 Legs . | . . . Wheels . | . . . Hover . | . . . Flight . | . . . Fastest Speed 50 | 50 160 160 Average Speed 160 | 125 160 181 Slowest Speed 250 | 160 160 250 Overloaded Moves . | . . . Propulsion Burnouts . | . . . Robots Hopped . | . . . Cave-ins Triggered . | . . . Exploration Rate (%) 16 | 4 33 13 Regions Visited 2 Branch Regions . Pre-discovered Areas . | . . . Known Exits Taken . | . . . Unknown Exits Taken 2 | 1 1 . Scrap Searched . | . . . Spaces Dug . | . . . Terrain Destroyed . | . . . Melee . | . . . Projectile . | . . . AOE . | . . . Terrain Rammed . | . . . Walls Destroyed . | . . . Machines Disabled . | . . . Actions | -11 -10 -9 --------- Run | Scr Mat Mat Total 407 | 53 220 134 Wait 12 | . . 12 Move 335 | 41 211 83 Hop . | . . . Pick Up 10 | 7 2 1 Fast Attach 3 | . 2 1 Attach 10 | 5 . 5 Detach . | . . . Swap . | . . . Drop . | . . . Fire 37 | . 5 32 Melee . | . . . Ram . | . . . Kick . | . . . Crush . | . . . Escape Stasis . | . . . Rewire . | . . . Trap . | . . . Miscellaneous . | . . . Route ------- -11/Scrapyard -10/Materials -9/Materials (discovered 1 exit: [*Mat]) History --------- Turn | Location | Event 5 | -11/Scrapyard | Discovered new exit (range 16) 64 | -11/Scrapyard | Entered Materials 309 | -10/Materials | Build established: Mutant 356 | -10/Materials | Discovered new exit (range 10) 420 | -10/Materials | Entered another Materials area 420 | -9/Materials | Evolved 2 slots: Utility x2 624 | -9/Materials | Lost 6 parts (1p2n3w) 637 | -9/Materials | Discovered new exit (range 14) 666 | -9/Materials | Core integrity fell below 50% 671 | -9/Materials | Self-destructed Last Messages --------------- 00611_ Acquired 51 matter. 00613_ R-06 Scavenger collects Lgt. Armor Plating. 00613_ K-01 Serf collects debris. 00614_ Acquired 59 matter. 00615_ K-01 Serf collects debris. 00617_ C-30 ARC bursts open, deploying its payload. 00617_ G-47 Trooper unfolds itself. 00617_ G-34 Mercenary unfolds itself. 00618_ K-01 Serf collects debris. 00620_ K-01 Serf destroyed. 00621_ K-01 Serf collects debris. 00622_ U-05 Engineer builds a Door. 00624_ K-01 Serf collects debris. 00637_ EXIT=FOUND 00644_ U-05 Engineer destroyed. 00648_ Med. Laser destroyed. 00661_ Acquired Prototype Engine. 00662_ Lgt. Ion Engine destroyed. 00662_ Identified Hvy. Ion Engine. 00666_ Med. Laser destroyed. Map ----- +----------------------------------------------------+ | #?#??????????????????????????????????????????????? | | #?#?????#????????????????????????????????????????? | | #??????#?????????????????????????????????????????? | | #?????????#???????? ?????????????????????????????? | | #?????#????#?????? ????????????????????????????? | | ###??#??##???????? ""???????????????????????????? | | ???????#######????" """ ?????????????????????????? | | ?#????## #####%"""" ????????????????????????? | | #??????# " ????????????????????????? | | ??????## ????????????????????????? | | ######## =% ?#??????????????????????? | | =### #???#?????????????????????????? | | ##########+##### ###???????????????????????????? | | ??#?# ## ##????????????????????????????? | | ??#?# # #???#????????????????????????? | | ????# # #??????????#?????????????????? | | ????# + #????#???????????????????????? | | ????# # ##???????????????????????????? | | ????# # #??#?????????????????????????? | | ????# ## ##########????????????????????? | | #???# ## # #????????????????????? | | ????############% # """ #????????????????????? | | #???#??????????+! + """ ##???????????????????? | | ?#???????????? # # """ #????????????????????? | | ???????????????# # gg #????????????????????? | | ????????? ??? ?# # g/!@ #????????????????????? | | ??????? ???????# # g/* #????????????????????? | | ???????????????# # g/* #????????????????????? | | ???????????????# # #????#???????????????? | | ???????????????# ##########??#?????????????????? | | ???????????????# #?????????????????????????????? | | ???????????????# < #?????????????????????????????? | | ???????????????# #?????????????????????????????? | | ???????????????####??#???????????????????????????? | | ?????????????????????????????????????????????????? | | ?????????????????????????????????????????????????? | | ?????????????????????????????????????????????????? | | ?????????????????????????????????????????????????? | | ?????????????????????????????????????????????????? | | ?????????????????????????????????????????????????? | | ?????????????????????????????????????????????????? | | ?????????????????????????????????????????????????? | | ?????????????????????????????????????????????????? | | ?????????????????????????????????????????????????? | | ?????????????????????????????????????????????????? | | ?????????????????????????????????????????????????? | | ?????????????????????????????????????????????????? | | ?????????????????????????????????????????????????? | | | | | +----------------------------------------------------+ Best States ------------- Heat Dissipation 38 Energy Generation 14 Energy Capacity 280 Matter Stores 391 Matter Capacity 500 Sight Range 16 Terrain Scan Range 14 Terrain Scan Density 10 Evasion (%) 40 Recoil Reduction 2 Item Schematics ----------------- None Robot Schematics ------------------ None Fabricated ------------ Nothing Alien Tech Used ----------------- None Achievements -------------- None Challenges ------------ None Game ------ Seed PoweredTransmissionEngine Manual? 0 Play Time 00:08:41 Cumulative 10.9 hours Start 2021.05.14 @ 23:46:47 End 2021.05.14 @ 23:53:02 Sessions 1 Manual Loads 0 Difficulty Rogue Special Mode None Game No. 42 Rogue 42 Adventurer 0 Explorer 0 Win Type - Total 0 Types 0/0/0/0/0/0/0/0/0 Lore% 13 Gallery% 21 Achievement% 17 Wizard Run 0 Options --------- ASCII 1 Keyboard 0 Movement Mouse Keybinds 0 Fullscreen 1 Font 18/SmallcapsGlow Map View 76x50 Tactical HUD 1 Map Filters NONE Filters NONE Steam 1 RUN: a670d423-9869-4df9-aa06-f8600a2f8a25